bitfinex-derivatives/quotes_BTCF0:USTF0_20250720
["timestamp","ask_amount","ask_price","bid_price","bid_amount"]
[1753055010688,1.27314154,117490.0,117480.0,0.6745493]
[1753055011588,1.27314154,117490.0,117480.0,0.65072]
[1753055012296,0.23422,117470.0,117450.0,0.10260275]
[1753055012590,1.1260006,117460.0,117450.0,0.02383236]
[1753055012785,1.1260006,117460.0,117450.0,0.66867236]
[1753055013388,1.21113958,117460.0,117450.0,0.66867236]
[1753055013585,1.21113958,117460.0,117450.0,0.67067236]
[1753055014189,1.21113958,117460.0,117450.0,0.02583236]
[1753055014392,1.21113958,117460.0,117450.0,0.67003236]
[1753055014594,1.21113958,117460.0,117450.0,0.6462]
[1753055014796,1.21113958,117460.0,117450.0,0.6452]
[1753055014996,1.21113958,117460.0,117450.0,0.6472]
[1753055015295,1.21113958,117460.0,117450.0,0.6462]
[1753055015496,1.21113958,117460.0,117450.0,0.6472]
[1753055016094,1.21113958,117460.0,117450.0,0.003]
[1753055016398,1.21113958,117460.0,117450.0,0.64692]
[1753055017091,0.311554,117430.0,117420.0,0.6304453]
[1753055017291,0.765244,117430.0,117420.0,0.83930486]
[1753055017499,0.765244,117430.0,117420.0,1.0026953]
[1753055017800,0.765244,117430.0,117420.0,0.98351319]
[1753055018003,0.765244,117430.0,117420.0,0.71752]
[1753055018296,0.765244,117430.0,117420.0,0.95310044]
[1753055018491,0.765244,117430.0,117420.0,0.95610044]
[1753055018893,0.78772568,117430.0,117420.0,0.95610044]
[1753055019097,0.78772568,117430.0,117420.0,1.12633904]
[1753055019596,0.78772568,117430.0,117420.0,1.20052904]
[1753055020700,0.78772568,117430.0,117420.0,1.19852904]
[1753055020892,0.78772568,117430.0,117420.0,1.19952904]
[1753055021590,0.87288642,117430.0,117420.0,0.95710044]
[1753055022295,0.87288642,117430.0,117420.0,1.12733904]
[1753055022598,0.87288642,117430.0,117420.0,0.95710044]
[1753055022892,0.87288642,117430.0,117420.0,1.12733904]
[1753055023099,0.87288642,117430.0,117420.0,1.19952904]
[1753055023694,0.78772568,117430.0,117420.0,1.22027904]
[1753055023901,0.73792568,117430.0,117420.0,1.22951904]
[1753055024198,0.78772568,117430.0,117420.0,1.22027904]
[1753055024398,0.78772568,117430.0,117420.0,1.12605904]
[1753055024796,0.78772568,117430.0,117420.0,1.02801044]
[1753055024995,0.78772568,117430.0,117420.0,1.19824904]
[1753055025396,0.78772568,117430.0,117420.0,0.9626686]
[1753055025597,0.78772568,117430.0,117420.0,1.19824904]
[1753055025795,0.78772568,117430.0,117420.0,1.21899904]
[1753055029207,0.78772568,117430.0,117420.0,1.18450057]
[1753055031703,0.42692568,117430.0,117420.0,1.18450057]
[1753055032806,0.78772568,117430.0,117420.0,1.18450057]
[1753055033411,0.78772568,117430.0,117420.0,1.21491332]
[1753055034205,0.78772568,117430.0,117420.0,0.07908]
[1753055034411,0.78772568,117430.0,117420.0,0.69167]
[1753055034609,0.78772568,117430.0,117420.0,0.89275197]
[1753055034809,0.78772568,117430.0,117420.0,1.06299057]
[1753055035512,0.78772568,117430.0,117420.0,0.90066197]
[1753055035712,0.78772568,117430.0,117420.0,0.84224197]
[1753055036815,0.78772568,117430.0,117420.0,1.01248057]
[1753055037515,0.78772568,117430.0,117420.0,1.08797057]
[1753055038413,0.78772568,117430.0,117420.0,1.11838332]
[1753055039716,0.78772568,117430.0,117420.0,1.16065057]
[1753055041419,0.56770168,117430.0,117420.0,1.18078057]
[1753055041615,0.07066168,117430.0,117420.0,1.55082057]
[1753055041820,0.79525578,117430.0,117420.0,0.99265197]
[1753055042017,0.3025631,117410.0,117400.0,0.04967797]
[1753055042220,0.7733531,117410.0,117400.0,0.01926522]
[1753055042419,0.7733531,117410.0,117400.0,0.66066522]
[1753055042623,0.7733531,117410.0,117390.0,0.05611275]
[1753055042624,0.4125676,117400.0,117390.0,0.05611275]
[1753055042821,0.97444957,117400.0,117390.0,0.03041275]
[1753055043016,0.2650121,117390.0,117380.0,0.04561912]
[1753055043219,0.7733821,117390.0,117380.0,0.67208771]
[1753055043623,0.79033049,117390.0,117380.0,0.87316968]
[1753055043922,0.87552025,117390.0,117380.0,0.40198628]
[1753055044124,0.87552025,117390.0,117380.0,1.04338628]
[1753055044323,0.87552025,117390.0,117380.0,0.87308968]
[1753055044723,0.87552025,117390.0,117380.0,0.67200771]
[1753055044925,0.87552025,117390.0,117380.0,0.87308968]
[1753055045126,0.87552025,117390.0,117380.0,0.67200771]
[1753055045327,0.87552025,117390.0,117380.0,0.8176966]
[1753055045926,0.87552025,117390.0,117380.0,0.8216966]
[1753055046828,0.87552025,117390.0,117380.0,0.8326066]
[1753055047022,0.87552025,117390.0,117380.0,1.06845082]
[1753055047826,0.87552025,117390.0,117380.0,0.89815422]
[1753055048530,0.87552025,117390.0,117380.0,1.06845082]
[1753055049929,0.87552025,117390.0,117380.0,1.16407082]
[1753055050130,0.87552025,117390.0,117380.0,1.17331082]
[1753055050331,0.87552025,117390.0,117380.0,1.16407082]
[1753055055238,0.87552025,117390.0,117380.0,0.9899966]
[1753055055437,0.87552025,117390.0,117380.0,1.22584082]
[1753055057839,0.87552025,117390.0,117380.0,1.05554422]
[1753055058040,0.87552025,117390.0,117380.0,1.03541422]
[1753055058340,0.87552025,117390.0,117380.0,1.20571082]
[1753055058742,0.87552025,117390.0,117380.0,1.03541422]
[1753055059039,0.87552025,117390.0,117380.0,1.20571082]
[1753055059243,0.87552025,117390.0,117380.0,1.22584082]
[1753055061543,0.87552025,117390.0,117380.0,0.9899966]
[1753055061740,0.87552025,117390.0,117380.0,1.22584082]
[1753055063744,0.87552025,117390.0,117380.0,1.20571082]
[1753055064143,0.87552025,117390.0,117380.0,0.79957]
[1753055064343,0.87552025,117390.0,117380.0,1.03541422]
[1753055064847,0.87552025,117390.0,117380.0,1.20571082]
[1753055065148,0.87552025,117390.0,117380.0,1.1711112]
[1753055066245,0.87552025,117390.0,117380.0,1.0008146]
[1753055066846,0.87552025,117390.0,117380.0,1.1711112]
[1753055067045,0.87552025,117390.0,117380.0,1.0008146]
[1753055067241,0.87552025,117390.0,117380.0,0.9698666]
[1753055067442,0.87552025,117390.0,117380.0,1.1711112]
[1753055067947,0.87552025,117390.0,117380.0,1.0008146]
[1753055068148,0.87552025,117390.0,117380.0,0.8427246]
[1753055068348,1.07676485,117390.0,117380.0,0.01]
[1753055068553,1.07676485,117390.0,117380.0,0.64148]
[1753055069249,0.87552025,117390.0,117380.0,0.64148]
[1753055069453,1.07676485,117390.0,117380.0,0.64148]
[1753055071249,1.07676485,117390.0,117380.0,0.01]
[1753055071555,0.4048614,117370.0,117360.0,0.07652]
[1753055071853,1.14401413,117370.0,117360.0,0.70664]
[1753055072048,1.22920389,117370.0,117360.0,0.70664]
[1753055072444,1.22920389,117370.0,117360.0,0.06173]
[1753055072642,1.43044849,117370.0,117360.0,0.63612]
[1753055072942,1.43044849,117370.0,117360.0,0.006]
[1753055073454,0.2608759,117360.0,117350.0,0.69157]
[1753055073652,0.7656759,117360.0,117350.0,0.69157]
[1753055074048,0.85088017,117360.0,117350.0,0.8928146]
[1753055074350,0.85088017,117360.0,117350.0,0.69157]
[1753055074750,0.85619883,117360.0,117350.0,0.69157]
[1753055074948,0.85819883,117360.0,117350.0,0.69157]
[1753055075153,0.85819883,117360.0,117350.0,0.69257]
[1753055075340,0.85819883,117360.0,117350.0,0.8777004]
[1753055075953,0.85819883,117360.0,117350.0,0.70736]
[1753055076845,0.85819883,117360.0,117350.0,0.9086046]
[1753055077241,0.85819883,117360.0,117350.0,0.70736]
[1753055078052,0.92559976,117360.0,117350.0,0.70736]
[1753055079852,0.92559976,117360.0,117350.0,0.8777005]
[1753055080553,0.92559976,117360.0,117350.0,1.0789451]
[1753055080856,0.92559976,117360.0,117350.0,0.9086046]
[1753055083249,0.92559976,117360.0,117350.0,0.9809646]
[1753055089449,0.92559976,117360.0,117350.0,1.0001446]
[1753055090253,0.87918976,117360.0,117350.0,1.1797251]
[1753055090559,0.76149549,117360.0,117350.0,1.1797251]
[1753055091258,0.78270549,117360.0,117350.0,1.1797251]
[1753055091459,0.77299456,117360.0,117350.0,1.1797251]
[1753055092459,0.77299456,117360.0,117350.0,0.9784805]
[1753055092659,0.77299456,117360.0,117350.0,1.1797251]
[1753055093560,0.41219456,117360.0,117350.0,1.1797251]
[1753055093756,0.77299456,117360.0,117350.0,1.1797251]
[1753055094857,0.77299456,117360.0,117350.0,1.1704851]
[1753055095157,0.77299456,117360.0,117350.0,0.9809646]
[1753055096660,0.77299456,117360.0,117350.0,1.1513051]
[1753055097464,0.77299456,117360.0,117350.0,0.77972]
[1753055097658,0.85820609,117360.0,117350.0,0.77972]
[1753055097957,0.85820609,117360.0,117350.0,0.70736]
[1753055098963,0.85820609,117360.0,117350.0,0.8777004]
[1753055099360,0.85820609,117360.0,117350.0,0.9481104]
[1753055099866,0.85820609,117360.0,117350.0,0.77777]
[1753055100261,0.85820609,117360.0,117350.0,0.9481104]
[1753055100565,0.85820609,117360.0,117350.0,0.69257]
[1753055100763,1.05945069,117360.0,117350.0,0.63084]
[1753055101158,1.12819319,117360.0,117350.0,0.63084]
[1753055102258,1.12819319,117360.0,117330.0,0.11252842]
[1753055102259,1.12829129,117360.0,117330.0,0.11252842]
[1753055102566,1.12829129,117360.0,117330.0,0.07730214]
[1753055102567,1.121405,117340.0,117330.0,0.07730214]
[1753055102763,1.121405,117340.0,117330.0,0.69814214]
[1753055102764,1.3226496,117340.0,117330.0,0.69814214]
[1753055103063,1.40786113,117340.0,117330.0,0.64002214]
[1753055103858,1.40786113,117340.0,117330.0,0.64202214]
[1753055104054,1.40786113,117340.0,117330.0,0.64702214]
[1753055104468,1.20661653,117340.0,117330.0,0.64702214]
[1753055104867,1.20661653,117340.0,117330.0,0.69495214]
[1753055105365,1.20761653,117340.0,117330.0,0.91617674]
[1753055106062,1.20761653,117340.0,117330.0,0.71493214]
[1753055106459,1.16261653,117340.0,117330.0,0.71493214]
[1753055106669,0.579275,117340.0,117330.0,1.18480624]
[1753055106965,0.3618,117340.0,117330.0,1.18480624]
[1753055107267,0.5321549,117340.0,117330.0,1.18480624]
[1753055107463,0.3608,117350.0,117340.0,0.3405249]
[1753055107662,0.5311404,117350.0,117340.0,0.5417695]
[1753055107857,0.5953234,117360.0,117340.0,0.3714146]
[1753055108060,0.6693593,117360.0,117350.0,1.162395]
[1753055108267,0.0911134,117360.0,117350.0,1.3636396]
[1753055108464,0.2614393,117360.0,117350.0,1.162395]
[1753055108969,0.0911134,117360.0,117350.0,1.162395]
[1753055109467,0.1382334,117360.0,117350.0,1.523195]
[1753055110365,0.1382334,117360.0,117350.0,1.165395]
[1753055110862,0.3085593,117360.0,117350.0,1.165395]
[1753055111068,0.29150706,117360.0,117350.0,1.165395]
[1753055111267,0.0687425,117360.0,117350.0,1.167395]
[1753055111467,0.72353823,117370.0,117360.0,0.3404959]
[1753055111770,0.79750823,117370.0,117360.0,0.5417405]
[1753055111968,0.81982823,117370.0,117360.0,0.5417405]
[1753055112666,0.78253302,117370.0,117360.0,0.5417405]
[1753055113562,0.84975842,117370.0,117360.0,0.5417405]
[1753055113966,0.84975842,117370.0,117360.0,0.5437405]
[1753055114167,0.84975842,117370.0,117360.0,0.5447405]
[1753055114370,0.78253302,117370.0,117360.0,0.5447405]
[1753055115166,0.33657302,117370.0,117360.0,0.5447405]
[1753055115470,0.33655992,117370.0,117360.0,0.5447405]
[1753055116268,0.69735992,117370.0,117360.0,0.5447405]
[1753055116565,0.33655992,117370.0,117360.0,0.5447405]
[1753055116875,0.72743992,117370.0,117360.0,0.5447405]
[1753055117573,0.36663992,117370.0,117360.0,0.5447405]
[1753055118072,0.19632852,117370.0,117360.0,0.5447405]
[1753055118268,0.72743992,117370.0,117360.0,0.7459851]
[1753055118670,0.55712852,117370.0,117360.0,0.7459851]
[1753055118870,0.19632852,117370.0,117360.0,0.5447405]
[1753055120269,0.01755273,117370.0,117360.0,1.1067851]
[1753055120872,0.01755273,117370.0,117360.0,1.12972138]
[1753055121373,0.02292445,117370.0,117360.0,0.7459851]
[1753055121568,0.01755273,117370.0,117360.0,0.7459851]
[1753055123076,0.01755273,117370.0,117360.0,1.1067851]
[1753055124177,0.05229905,117380.0,117370.0,0.3128314]
[1753055124379,0.07461905,117380.0,117370.0,1.130356]
[1753055124980,0.05229905,117380.0,117370.0,1.130356]
[1753055125577,0.05229905,117380.0,117370.0,1.131356]
[1753055125975,0.07282905,117380.0,117370.0,1.131356]
[1753055127075,0.04712,117380.0,117370.0,1.493156]
[1753055127276,0.52148839,117390.0,117380.0,0.3116569]
[1753055127482,0.52148839,117390.0,117380.0,0.5129015]
[1753055128279,0.73338079,117390.0,117380.0,0.5129015]
[1753055128788,0.77863079,117390.0,117380.0,0.5129015]
[1753055128985,0.77863079,117390.0,117380.0,0.5139015]
[1753055129378,0.60834839,117390.0,117380.0,0.5139015]
[1753055129582,0.77863079,117390.0,117380.0,0.5139015]
[1753055130782,0.60834839,117390.0,117380.0,0.5139015]
[1753055131184,0.61360507,117390.0,117380.0,0.5139015]
[1753055131788,0.78388747,117390.0,117380.0,0.5139015]
[1753055134285,0.61360507,117390.0,117380.0,0.5139015]
[1753055134487,0.78388747,117390.0,117380.0,0.5139015]
[1753055135486,0.61360507,117390.0,117380.0,0.5139015]
[1753055135886,0.08671839,117390.0,117380.0,0.8747015]
[1753055138390,0.14557855,117400.0,117390.0,0.2334624]
[1753055138693,0.14557855,117400.0,117390.0,1.127207]
[1753055138887,0.18718855,117400.0,117390.0,1.127207]
[1753055139082,0.23243855,117400.0,117390.0,1.127207]
[1753055140385,0.23343855,117400.0,117390.0,1.127207]
[1753055140593,0.40470645,117400.0,117390.0,1.127207]
[1753055141396,0.23343855,117400.0,117390.0,0.9259624]
[1753055141591,0.23343855,117400.0,117390.0,1.127207]
[1753055142091,0.23243855,117400.0,117390.0,1.128207]
[1753055142285,0.07491855,117400.0,117390.0,1.3294516]
[1753055142481,0.05438855,117400.0,117390.0,1.3294516]
[1753055142683,0.05438855,117400.0,117390.0,1.128207]
[1753055142895,0.07491855,117400.0,117390.0,1.51194328]
[1753055143694,0.14557855,117400.0,117390.0,1.51394328]
[1753055144297,0.35745645,117400.0,117390.0,1.15414328]
[1753055144497,0.18718855,117400.0,117390.0,1.15414328]
[1753055144698,0.18718855,117400.0,117390.0,1.15514328]
[1753055146203,0.18204,117400.0,117390.0,1.15514328]
[1753055146700,0.18721161,117400.0,117390.0,1.15414328]
[1753055147099,0.18721161,117400.0,117390.0,1.15114328]
[1753055147305,0.18721161,117400.0,117390.0,1.15214328]
[1753055147496,0.23246161,117400.0,117390.0,1.15414328]
[1753055147800,0.23246161,117400.0,117390.0,1.15514328]
[1753055148003,0.40272951,117400.0,117390.0,1.15514328]
[1753055148201,0.23246161,117400.0,117390.0,1.15514328]
[1753055148802,0.23246161,117400.0,117390.0,1.15214328]
[1753055149004,0.23246161,117400.0,117390.0,1.15414328]
[1753055149803,0.23246161,117400.0,117390.0,1.15214328]
[1753055150000,0.23246161,117400.0,117390.0,1.15314328]
[1753055150401,0.18204,117400.0,117390.0,1.15314328]
[1753055150802,0.18204,117400.0,117390.0,1.15214328]
[1753055151002,0.18204,117400.0,117390.0,1.15314328]
[1753055151406,0.14043,117400.0,117390.0,1.15314328]
[1753055151604,0.06977,117400.0,117390.0,1.35438788]
[1753055151798,0.04924,117400.0,117390.0,1.35438788]
[1753055153010,0.04924,117400.0,117390.0,1.71518788]
[1753055153608,0.14043,117410.0,117400.0,0.3116279]
[1753055153805,0.50123,117410.0,117400.0,0.7141171]
[1753055154007,0.58809,117410.0,117400.0,0.7141171]
[1753055155108,0.58809,117410.0,117400.0,0.7151171]
[1753055155407,0.18204,117410.0,117400.0,0.7151171]
[1753055155609,0.54874247,117410.0,117400.0,0.7151171]
[1753055156002,0.59326247,117410.0,117400.0,0.7151171]
[1753055156504,0.76351577,117410.0,117400.0,0.5128725]
[1753055156709,0.59326247,117410.0,117400.0,0.5158725]
[1753055156910,0.59326247,117410.0,117400.0,0.7171171]
[1753055157609,0.59326247,117410.0,117400.0,0.7141171]
[1753055157912,0.59326247,117410.0,117400.0,0.7171171]
[1753055158413,0.23246247,117410.0,117400.0,0.7171171]
[1753055158912,0.18794247,117410.0,117400.0,0.7171171]
[1753055159912,0.18794247,117410.0,117400.0,0.7181171]
[1753055160612,0.23246247,117410.0,117400.0,0.7181171]
[1753055160917,0.23246247,117410.0,117400.0,0.7171171]
[1753055161214,0.23246247,117410.0,117400.0,0.7191171]
[1753055161413,0.23246247,117410.0,117400.0,0.738324]
[1753055161614,0.14633247,117410.0,117400.0,0.76127213]
[1753055161814,0.14633247,117410.0,117400.0,0.75927213]
[1753055162115,0.14633247,117410.0,117400.0,0.76027213]
[1753055162309,0.17757247,117410.0,117400.0,0.35778293]
[1753055162505,0.23243247,117410.0,117400.0,0.75727213]
[1753055162707,0.23243247,117410.0,117400.0,0.75927213]
[1753055163107,0.23243247,117410.0,117400.0,1.37339213]
[1753055163304,0.18791247,117410.0,117400.0,1.37339213]
[1753055163505,0.17757247,117410.0,117400.0,1.37339213]
[1753055163707,0.17757247,117410.0,117400.0,1.37239213]
[1753055163909,0.17757247,117410.0,117400.0,1.37539213]
[1753055164713,0.05514247,117410.0,117400.0,1.37539213]
[1753055164913,0.52705,117420.0,117410.0,0.3052333]
[1753055165217,0.58191,117420.0,117410.0,0.5064779]
[1753055165613,0.54325879,117420.0,117410.0,0.5064779]
[1753055166017,0.18245879,117420.0,117410.0,0.5064779]
[1753055166215,0.13501,117420.0,117410.0,0.5084779]
[1753055166424,0.13501,117420.0,117410.0,0.8692779]
[1753055166721,0.13501,117420.0,117410.0,0.92283374]
[1753055167214,0.13501,117420.0,117410.0,0.53242603]
[1753055167418,0.13501,117420.0,117410.0,0.92383374]
[1753055167616,0.13501,117420.0,117410.0,0.89322603]
[1753055168719,0.50175112,117430.0,117420.0,0.3052188]
[1753055168921,0.50175112,117430.0,117420.0,1.1205434]
[1753055169120,0.41566112,117430.0,117420.0,1.1205434]
[1753055169322,0.04892,117430.0,117420.0,1.1205434]
[1753055169525,0.13501,117430.0,117420.0,1.1205434]
[1753055169825,0.16625,117430.0,117420.0,1.1205434]
[1753055170022,0.22111,117430.0,117420.0,1.1205434]
[1753055170525,0.17659,117430.0,117420.0,1.14349153]
[1753055170718,0.17659,117430.0,117420.0,1.50529153]
[1753055171422,0.17659,117430.0,117420.0,1.30404693]
[1753055171620,0.17659,117430.0,117420.0,1.50529153]
[1753055172121,0.22111,117430.0,117420.0,1.50729153]
[1753055172316,0.22111,117430.0,117420.0,1.50629153]
[1753055172521,0.22111,117430.0,117420.0,1.50929153]
[1753055175125,0.22111,117430.0,117420.0,1.4863434]
[1753055179725,0.22111,117430.0,117420.0,1.50929153]
[1753055180831,0.17659,117430.0,117420.0,1.50929153]
[1753055181130,0.04892,117430.0,117420.0,1.50929153]
[1753055181729,0.06891,117430.0,117420.0,1.50929153]
[1753055181929,0.13501,117430.0,117420.0,1.50929153]
[1753055182328,0.06891,117430.0,117420.0,1.50929153]
[1753055183437,0.13501,117430.0,117420.0,1.50929153]
[1753055183828,0.06891,117430.0,117420.0,1.50929153]
[1753055186333,0.13656,117430.0,117420.0,1.50929153]
[1753055186829,0.06891,117430.0,117420.0,1.50929153]
[1753055187235,0.13656,117430.0,117420.0,1.50929153]
[1753055187437,0.3067844,117430.0,117420.0,1.50929153]
[1753055187735,0.3484144,117430.0,117420.0,1.50929153]
[1753055187936,0.7521044,117430.0,117420.0,1.13889153]
[1753055188336,0.7521044,117430.0,117420.0,1.1159434]
[1753055189242,0.7521044,117430.0,117420.0,1.1149434]
[1753055190335,0.7521044,117430.0,117420.0,1.1129434]
[1753055190530,0.7521044,117430.0,117420.0,1.1231834]
[1753055191137,0.7521044,117430.0,117420.0,1.14613153]
[1753055191436,0.7521044,117430.0,117420.0,1.0484034]
[1753055192545,0.7521044,117430.0,117420.0,0.8471588]
[1753055192734,0.7521044,117430.0,117420.0,1.0464034]
[1753055193237,0.7521044,117430.0,117420.0,0.4327234]
[1753055193442,0.9706111,117430.0,117420.0,0.02394813]
[1753055193738,0.85452724,117430.0,117420.0,0.61364]
[1753055193940,0.85452724,117430.0,117420.0,0.63658813]
[1753055194241,0.85452724,117430.0,117420.0,0.83783273]
[1753055194636,0.85552724,117430.0,117420.0,0.83783273]
[1753055195337,0.85531129,117430.0,117420.0,0.63658813]
[1753055195545,0.85531129,117430.0,117420.0,0.63661707]
[1753055196037,0.85631129,117430.0,117420.0,0.63661707]
[1753055196342,0.85631129,117430.0,117420.0,0.80685587]
[1753055196542,0.85631129,117430.0,117420.0,1.00810047]
[1753055197044,0.85631129,117430.0,117420.0,0.83786167]
[1753055197346,0.85631129,117430.0,117420.0,0.63661707]
[1753055197541,0.85631129,117430.0,117420.0,0.8148846]
[1753055198346,0.85631129,117430.0,117420.0,0.61364]
[1753055198543,0.85631129,117430.0,117420.0,0.7838788]
[1753055198942,0.85631129,117430.0,117420.0,0.9851234]
[1753055199343,0.85631129,117430.0,117420.0,1.0298134]
[1753055199947,0.85531129,117430.0,117420.0,1.0298134]
[1753055200150,0.85631129,117430.0,117420.0,1.0298134]
[1753055200850,0.85631129,117430.0,117420.0,0.8595746]
[1753055201448,0.85631129,117430.0,117420.0,1.0298134]
[1753055202850,0.85531129,117430.0,117420.0,1.0298134]
[1753055203150,0.85631129,117430.0,117420.0,1.0298134]
[1753055203946,0.85531129,117430.0,117420.0,1.0298134]
[1753055204147,0.85631129,117430.0,117420.0,0.8437088]
[1753055204447,0.85631129,117430.0,117420.0,1.1159634]
[1753055205042,0.77115055,117430.0,117420.0,1.1159634]
[1753055205247,0.77115055,117430.0,117420.0,1.1254234]
[1753055205447,0.71787055,117430.0,117420.0,1.1254234]
[1753055205651,0.61898055,117430.0,117420.0,1.1254234]
[1753055205856,0.61798055,117430.0,117420.0,1.1254234]
[1753055206045,0.44775615,117430.0,117420.0,1.1254234]
[1753055206950,0.61698045,117430.0,117420.0,1.1254234]
[1753055207153,0.61698045,117430.0,117420.0,1.1264234]
[1753055207753,0.44675615,117430.0,117420.0,1.1264234]
[1753055208550,0.44675615,117430.0,117420.0,1.1294234]
[1753055208551,0.61698045,117430.0,117420.0,1.1294234]
[1753055210154,0.68463045,117430.0,117420.0,1.1294234]
[1753055210351,0.76991045,117430.0,117420.0,1.1294234]
[1753055210654,0.76991045,117430.0,117420.0,1.1199634]
[1753055211655,0.76991045,117430.0,117420.0,1.1284234]
[1753055211849,0.76991045,117430.0,117420.0,1.1179634]
[1753055212054,0.76991045,117430.0,117420.0,1.1189634]
[1753055213153,0.85507119,117430.0,117420.0,0.2042446]
[1753055213458,0.85507119,117430.0,117420.0,0.8176446]
[1753055214248,0.85507119,117430.0,117420.0,0.6164]
[1753055214755,0.85507119,117430.0,117420.0,0.6144]
[1753055215566,0.85607119,117430.0,117420.0,0.6134]
[1753055216266,0.85607119,117430.0,117420.0,0.9848834]
[1753055216462,0.85607119,117430.0,117420.0,1.0281934]
[1753055216662,0.85707119,117430.0,117420.0,1.0281934]
[1753055218661,0.85707119,117430.0,117420.0,0.9848834]
[1753055220662,0.85707119,117430.0,117420.0,0.8146446]
[1753055221171,0.85707119,117430.0,117420.0,0.6134]
[1753055221361,0.85707119,117430.0,117420.0,0.8146446]
[1753055221668,0.3884933,117410.0,117400.0,1.65697785]
[1753055221871,0.7492933,117410.0,117400.0,1.59135785]
[1753055222062,0.7492933,117410.0,117400.0,2.01512315]
[1753055222260,0.7492933,117410.0,117400.0,1.81387855]
[1753055223068,1.39651314,117410.0,117400.0,0.63719855]
[1753055223268,1.39651314,117410.0,117400.0,0.61424]
[1753055223863,1.19526854,117410.0,117400.0,0.61424]
[1753055224066,1.19526854,117410.0,117400.0,0.61624]
[1753055226366,1.19626854,117410.0,117400.0,0.61424]
[1753055227367,1.19626854,117410.0,117400.0,0.61324]
[1753055227567,1.19726854,117410.0,117400.0,0.61324]
[1753055228069,1.26593448,117410.0,117400.0,0.61324]
[1753055231674,1.26593448,117410.0,117400.0,0.9847524]
[1753055231872,1.26593448,117410.0,117400.0,0.9385546]
[1753055232979,1.26593448,117410.0,117400.0,0.8729346]
[1753055233181,1.26593448,117410.0,117400.0,0.8577946]
[1753055234475,1.26593448,117410.0,117400.0,0.8729346]
[1753055234683,1.26593448,117410.0,117400.0,0.9385546]
[1753055236084,1.26593448,117410.0,117400.0,0.73731]
[1753055236386,1.26593448,117410.0,117400.0,0.9385546]
[1753055236576,1.26593448,117410.0,117400.0,0.73731]
[1753055236882,1.26593448,117410.0,117400.0,0.9385546]
[1753055237783,1.19726854,117410.0,117400.0,0.9385546]
[1753055238286,1.19726854,117410.0,117400.0,0.73731]
[1753055238481,1.19726854,117410.0,117400.0,0.9385546]
[1753055239081,1.19726854,117410.0,117400.0,0.9383146]
[1753055241088,1.19726854,117410.0,117400.0,0.8726946]
[1753055241292,1.26664968,117410.0,117400.0,0.8726946]
[1753055244392,1.26664968,117410.0,117400.0,0.9383146]
[1753055244690,1.26664968,117410.0,117400.0,0.8726946]
[1753055245792,1.26664968,117410.0,117400.0,0.67145]
[1753055247789,1.26664968,117410.0,117400.0,0.01514]
[1753055247989,0.2622716,117390.0,117370.0,0.58243315]
[1753055248187,1.1115968,117380.0,117370.0,0.50506265]
[1753055248389,1.1115968,117380.0,117370.0,1.11790265]
[1753055249694,1.1115968,117380.0,117370.0,0.91665805]
[1753055249894,1.1115968,117380.0,117370.0,1.11790265]
[1753055250096,1.19679381,117380.0,117370.0,0.06787855]
[1753055250296,1.19679381,117380.0,117370.0,0.88196315]
[1753055250496,1.20318405,117380.0,117370.0,0.8620046]
[1753055251098,1.20318405,117380.0,117370.0,1.0323159]
[1753055251298,1.20318405,117380.0,117370.0,1.0598459]
[1753055251597,1.11798704,117380.0,117370.0,1.0558459]
[1753055252899,1.11798704,117380.0,117370.0,0.8546013]
[1753055253099,1.11798704,117380.0,117370.0,0.8855346]
[1753055253999,1.11798704,117380.0,117370.0,1.055846]
[1753055256199,1.11798704,117380.0,117370.0,0.8546014]
[1753055256398,1.11798704,117380.0,117370.0,1.055846]
[1753055257902,0.75718704,117380.0,117370.0,1.055846]
[1753055259398,0.75718704,117380.0,117370.0,0.8580046]
[1753055260405,0.75718704,117380.0,117370.0,1.0558459]
[1753055262401,0.75718704,117380.0,117370.0,0.8580046]
[1753055263908,0.75718704,117380.0,117370.0,0.65676]
[1753055264207,0.75718704,117380.0,117370.0,0.8580046]
[1753055264509,0.75718704,117380.0,117370.0,0.65676]
[1753055264709,0.2538614,117370.0,117360.0,1.1778]
[1753055265005,0.7508114,117370.0,117360.0,1.9916046]
[1753055265207,0.7508114,117370.0,117360.0,1.1778]
[1753055265407,0.7508114,117370.0,117360.0,1.79036]
[1753055265408,1.03726027,117370.0,117360.0,1.79036]
[1753055265608,1.03726027,117370.0,117360.0,0.61256]
[1753055266710,0.83601567,117370.0,117360.0,0.61256]
[1753055267010,1.03726027,117370.0,117360.0,0.61256]
[1753055267509,1.03826027,117370.0,117360.0,0.61256]
[1753055268011,1.03926027,117370.0,117360.0,0.61256]
[1753055268205,0.83801567,117370.0,117360.0,0.61256]
[1753055268411,1.03926027,117370.0,117360.0,0.61256]
[1753055268611,0.83801567,117370.0,117360.0,0.61256]
[1753055268810,1.03926027,117370.0,117360.0,0.61256]
[1753055269013,0.2445604,117350.0,117340.0,0.4155181]
[1753055269214,0.7508404,117350.0,117340.0,1.0280381]
[1753055269604,0.5805,117350.0,117330.0,0.02295855]
[1753055269810,0.8360378,117340.0,117330.0,0.2451646]
[1753055270009,0.9212214,117340.0,117330.0,0.8576846]
[1753055271012,0.9212214,117340.0,117330.0,0.8586846]
[1753055271513,0.9212214,117340.0,117330.0,0.65744]
[1753055271712,0.9212214,117340.0,117330.0,0.8586846]
[1753055272212,0.9212214,117340.0,117330.0,0.65744]
[1753055272213,1.00644746,117340.0,117330.0,0.65744]
[1753055272711,1.00644746,117340.0,117330.0,0.001]
[1753055272911,0.381745,117320.0,117310.0,0.4581594]
[1753055273110,0.381745,117320.0,117310.0,1.0706394]
[1753055273111,0.742545,117320.0,117310.0,1.0706394]
[1753055273411,0.878695,117320.0,117310.0,1.0706394]
[1753055273613,0.878695,117320.0,117310.0,0.8693948]
[1753055273815,0.878695,117320.0,117310.0,1.0706394]
[1753055274008,0.878695,117320.0,117310.0,1.0736394]
[1753055274320,0.879695,117320.0,117310.0,1.0796394]
[1753055274914,1.240495,117320.0,117310.0,1.03704]
[1753055275115,1.240495,117320.0,117310.0,0.8666446]
[1753055275411,1.240495,117320.0,117310.0,0.8357985]
[1753055275711,1.240495,117320.0,117310.0,0.62148]
[1753055275902,1.240495,117320.0,117310.0,0.8227246]
[1753055276105,1.240495,117320.0,117310.0,0.8336885]
[1753055276307,1.240495,117320.0,117310.0,1.0349331]
[1753055276507,1.240495,117320.0,117310.0,0.8336885]
[1753055276715,1.24730398,117320.0,117310.0,1.0349331]
[1753055277412,1.24730398,117320.0,117310.0,0.8645346]
[1753055277708,1.24730398,117320.0,117310.0,0.66329]
[1753055277910,1.24730398,117320.0,117310.0,1.0349331]
[1753055278411,1.24730398,117320.0,117310.0,0.8336885]
[1753055278612,1.26473559,117320.0,117310.0,0.62148]
[1753055278820,1.55122078,117320.0,117310.0,0.009]
[1753055280217,1.34997618,117320.0,117310.0,0.009]